[Event "*** Titled Tuesday Blitz"]
[Site "Chess.com"]
[Date "2020.04.14"]
[Round "8"]
[White "Onwgs"]
[Black "albi1999"]
[Result "0-1"]
[WhiteElo "2411"]
[BlackElo "2592"]
[TimeControl "180+1"]
[EndTime "11:27:15 PDT"]
[Termination "albi1999 won by resignation"]

1. e4 {[%clk 0:03:00]} 1... c6 {[%clk 0:02:43.3]} 2. d4 {[%clk 0:02:59.6]} 2...
d5 {[%clk 0:02:44.2]} 3. Nd2 {[%clk 0:03:00.2]} 3... dxe4 {[%clk 0:02:43.8]} 4.
Nxe4 {[%clk 0:03:00]} 4... Nf6 {[%clk 0:02:44.7]} 5. Nxf6+ {[%clk 0:02:58.9]}
5... exf6 {[%clk 0:02:44]} 6. c3 {[%clk 0:02:57.9]} 6... Bd6 {[%clk 0:02:43.8]}
7. Bd3 {[%clk 0:02:58.2]} 7... O-O {[%clk 0:02:43.9]} 8. Qc2 {[%clk 0:02:58.9]}
8... Re8+ {[%clk 0:02:44.4]} 9. Ne2 {[%clk 0:02:59.5]} 9... h5 {[%clk
0:02:44.8]} 10. Be3 {[%clk 0:03:00]} 10... Nd7 {[%clk 0:02:43.7]} 11. O-O-O
{[%clk 0:03:00.6]} 11... Nf8 {[%clk 0:02:44.2]} 12. h3 {[%clk 0:02:58.7]} 12...
Be6 {[%clk 0:02:31.1]} 13. Kb1 {[%clk 0:02:57.1]} 13... b5 {[%clk 0:02:25.3]}
14. Be4 {[%clk 0:02:55]} 14... Bd5 {[%clk 0:02:15.7]} 15. Bxd5 {[%clk
0:02:54.9]} 15... cxd5 {[%clk 0:02:16.6]} 16. Qb3 {[%clk 0:02:55.8]} 16... Bc7
{[%clk 0:01:57.4]} 17. Qxb5 {[%clk 0:02:54]} 17... Ne6 {[%clk 0:01:41.9]} 18.
Rhe1 {[%clk 0:02:51.4]} 18... Rb8 {[%clk 0:01:40.5]} 19. Qd3 {[%clk 0:02:50.3]}
19... Qd7 {[%clk 0:01:37.8]} 20. Bc1 {[%clk 0:02:49]} 20... Rb7 {[%clk
0:01:30.6]} 21. Qf5 {[%clk 0:02:40.3]} 21... Qb5 {[%clk 0:01:02.4]} 22. Qxh5
{[%clk 0:02:31.7]} 22... Reb8 {[%clk 0:00:59.5]} 23. Ng3 {[%clk 0:02:24.9]}
23... Bf4 {[%clk 0:00:52.9]} 24. Re3 {[%clk 0:02:00.8]} 24... Bxe3 {[%clk
0:00:51.4]} 25. fxe3 {[%clk 0:02:01.7]} 25... Qa4 {[%clk 0:00:50.3]} 26. Qxd5
{[%clk 0:01:56.4]} 26... Qxd1 {[%clk 0:00:48.3]} 0-1

[Event "*** Titled Tuesday Blitz"]
[Site "Chess.com"]
[Date "2020.04.14"]
[Round "8"]
[White "Darhild"]
[Black "Igrok3069"]
[Result "0-1"]
[WhiteElo "2693"]
[BlackElo "2624"]
[TimeControl "180+1"]
[EndTime "11:27:17 PDT"]
[Termination "Igrok3069 won by resignation"]

1. e4 {[%clk 0:03:00.9]} 1... c5 {[%clk 0:02:59.1]} 2. Nf3 {[%clk 0:02:45.4]}
2... e6 {[%clk 0:02:58.9]} 3. d4 {[%clk 0:02:41.4]} 3... cxd4 {[%clk 0:02:59.8]}
4. Nxd4 {[%clk 0:02:42.3]} 4... Nf6 {[%clk 0:02:59.2]} 5. Nc3 {[%clk 0:02:39.5]}
5... Nc6 {[%clk 0:02:59.3]} 6. Nxc6 {[%clk 0:02:29.4]} 6... bxc6 {[%clk
0:02:58.7]} 7. e5 {[%clk 0:02:29.7]} 7... Nd5 {[%clk 0:02:58.9]} 8. Ne4 {[%clk
0:02:30.1]} 8... Qc7 {[%clk 0:02:59.4]} 9. f4 {[%clk 0:02:30]} 9... Qb6 {[%clk
0:02:59.7]} 10. c4 {[%clk 0:02:30]} 10... Bb4+ {[%clk 0:02:59.7]} 11. Ke2 {[%clk
0:02:29.4]} 11... f5 {[%clk 0:02:57.6]} 12. Nf2 {[%clk 0:02:28.7]} 12... Ba6
{[%clk 0:02:48.2]} 13. Kf3 {[%clk 0:02:28.9]} 13... Ne7 {[%clk 0:02:48.3]} 14.
Be3 {[%clk 0:02:17.7]} 14... Bc5 {[%clk 0:02:46.1]} 15. Bxc5 {[%clk 0:02:16.8]}
15... Qxc5 {[%clk 0:02:46.3]} 16. Qd6 {[%clk 0:02:17.2]} 16... Qb6 {[%clk
0:02:44.6]} 17. b3 {[%clk 0:02:13.3]} 17... c5 {[%clk 0:02:41.6]} 18. Rd1 {[%clk
0:02:11.1]} 18... Bb7+ {[%clk 0:02:37.8]} 19. Kg3 {[%clk 0:02:03.3]} 19... Qxd6
{[%clk 0:02:34.5]} 20. Rxd6 {[%clk 0:01:47.2]} 20... g5 {[%clk 0:02:29.5]} 21.
fxg5 {[%clk 0:01:30.8]} 21... f4+ {[%clk 0:02:28.8]} 22. Kg4 {[%clk 0:01:23.3]}
22... h5+ {[%clk 0:02:05.4]} 23. Kh3 {[%clk 0:01:05.8]} 23... Ng6 {[%clk
0:01:51]} 24. Nd3 {[%clk 0:01:03.1]} 24... Rc8 {[%clk 0:01:50.3]} 25. Be2 {[%clk
0:00:54.4]} 25... Be4 {[%clk 0:01:49.2]} 26. Re1 {[%clk 0:00:50.8]} 26... Bf5+
{[%clk 0:01:47.2]} 27. g4 {[%clk 0:00:41.3]} 27... hxg4+ {[%clk 0:01:45.8]} 28.
Kg2 {[%clk 0:00:41.7]} 28... f3+ {[%clk 0:01:45.8]} 0-1

[Event "*** Titled Tuesday Blitz"]
[Site "Chess.com"]
[Date "2020.04.14"]
[Round "8"]
[White "Jospem"]
[Black "Guachiney"]
[Result "1-0"]
[WhiteElo "2910"]
[BlackElo "2848"]
[TimeControl "180+1"]
[EndTime "11:27:21 PDT"]
[Termination "Jospem won by resignation"]

1. c4 {[%clk 0:03:00.9]} 1... g6 {[%clk 0:02:58.2]} 2. g3 {[%clk 0:03:00.2]}
2... c5 {[%clk 0:02:57.5]} 3. Nc3 {[%clk 0:02:59.8]} 3... Bg7 {[%clk 0:02:57.9]}
4. Bg2 {[%clk 0:03:00.4]} 4... Nc6 {[%clk 0:02:58.5]} 5. d3 {[%clk 0:03:01]}
5... d6 {[%clk 0:02:58.6]} 6. e3 {[%clk 0:03:01.3]} 6... e5 {[%clk 0:02:55.8]}
7. Nge2 {[%clk 0:03:01.5]} 7... Nge7 {[%clk 0:02:56.1]} 8. O-O {[%clk 0:03:02]}
8... O-O {[%clk 0:02:56.2]} 9. b3 {[%clk 0:03:01.9]} 9... Rb8 {[%clk 0:02:54.6]}
10. Bb2 {[%clk 0:03:01.5]} 10... Be6 {[%clk 0:02:52.6]} 11. Nd5 {[%clk
0:03:01.3]} 11... b5 {[%clk 0:02:51.2]} 12. Qd2 {[%clk 0:03:00.6]} 12... Qd7
{[%clk 0:02:47.8]} 13. Rac1 {[%clk 0:02:49.5]} 13... f5 {[%clk 0:02:28.6]} 14.
f4 {[%clk 0:02:49.1]} 14... bxc4 {[%clk 0:02:11.7]} 15. dxc4 {[%clk 0:02:44]}
15... Rfd8 {[%clk 0:01:53.7]} 16. Rfd1 {[%clk 0:02:36.7]} 16... Qc8 {[%clk
0:01:20.1]} 17. h3 {[%clk 0:02:31.1]} 17... Bf7 {[%clk 0:01:18]} 18. Kh2 {[%clk
0:02:23.2]} 18... h5 {[%clk 0:01:16.5]} 19. Bc3 {[%clk 0:02:14.5]} 19... a6
{[%clk 0:01:16.3]} 20. Ng1 {[%clk 0:02:13.2]} 20... Nxd5 {[%clk 0:01:02.6]} 21.
Bxd5 {[%clk 0:02:13]} 21... Bxd5 {[%clk 0:01:01.6]} 22. Qxd5+ {[%clk 0:02:13.9]}
22... Kh8 {[%clk 0:01:00.9]} 23. Nf3 {[%clk 0:02:14.2]} 23... Nb4 {[%clk
0:00:57.6]} 24. Bxb4 {[%clk 0:02:08.3]} 24... cxb4 {[%clk 0:00:56.4]} 25. Ng5
{[%clk 0:02:08.5]} 25... Rd7 {[%clk 0:00:51.5]} 26. c5 {[%clk 0:01:40.6]} 26...
Rb5 {[%clk 0:00:50.9]} 27. Qe6 {[%clk 0:01:39.3]} 27... Rxc5 {[%clk 0:00:49.8]}
28. Rxc5 {[%clk 0:01:32.9]} 28... Qxc5 {[%clk 0:00:50.7]} 29. Qe8+ {[%clk
0:01:33]} 1-0

[Event "*** Titled Tuesday Blitz"]
[Site "Chess.com"]
[Date "2020.04.14"]
[Round "8"]
[White "Tashik"]
[Black "mathapples"]
[Result "1-0"]
[WhiteElo "2542"]
[BlackElo "2330"]
[TimeControl "180+1"]
[EndTime "11:27:29 PDT"]
[Termination "Tashik won by resignation"]

1. c4 {[%clk 0:03:00.9]} 1... e6 {[%clk 0:02:59.2]} 2. Nc3 {[%clk 0:03:00.3]}
2... d5 {[%clk 0:02:58.6]} 3. d4 {[%clk 0:03:00.3]} 3... c6 {[%clk 0:02:58.6]}
4. Nf3 {[%clk 0:02:59.1]} 4... Nf6 {[%clk 0:02:58.3]} 5. Bg5 {[%clk 0:02:58.5]}
5... Nbd7 {[%clk 0:02:56.9]} 6. e3 {[%clk 0:02:58]} 6... Qa5 {[%clk 0:02:56.2]}
7. Nd2 {[%clk 0:02:53.9]} 7... dxc4 {[%clk 0:02:54.4]} 8. Bxf6 {[%clk
0:02:53.1]} 8... Nxf6 {[%clk 0:02:54.2]} 9. Nxc4 {[%clk 0:02:53.6]} 9... Qc7
{[%clk 0:02:53.2]} 10. Rc1 {[%clk 0:02:52.7]} 10... Be7 {[%clk 0:02:52.7]} 11.
Bd3 {[%clk 0:02:52.4]} 11... O-O {[%clk 0:02:52.3]} 12. O-O {[%clk 0:02:53]}
12... Nd7 {[%clk 0:02:41.8]} 13. f4 {[%clk 0:02:29.9]} 13... f5 {[%clk
0:02:28.2]} 14. Qb3 {[%clk 0:02:18.8]} 14... Rf6 {[%clk 0:02:24.2]} 15. Ne5
{[%clk 0:02:16.8]} 15... Nxe5 {[%clk 0:02:22]} 16. fxe5 {[%clk 0:02:15.4]} 16...
Rh6 {[%clk 0:02:20.7]} 17. Bxf5 {[%clk 0:02:11.7]} 17... Qd8 {[%clk 0:02:03.8]}
18. Rcd1 {[%clk 0:01:24.9]} 18... a5 {[%clk 0:02:02.4]} 19. Bb1 {[%clk
0:01:18.4]} 19... Qe8 {[%clk 0:01:54]} 20. Ne4 {[%clk 0:01:12]} 20... Qh5 {[%clk
0:01:52.1]} 21. h3 {[%clk 0:01:12.5]} 21... Qg6 {[%clk 0:01:49.1]} 22. Nf6+
{[%clk 0:01:11.5]} 22... gxf6 {[%clk 0:01:47.8]} 23. Bxg6 {[%clk 0:01:11]} 23...
Rxg6 {[%clk 0:01:47.3]} 24. exf6 {[%clk 0:01:07]} 24... Bxf6 {[%clk 0:01:45.7]}
25. Rf3 {[%clk 0:01:03.5]} 25... Kg7 {[%clk 0:01:42.4]} 26. Rdf1 {[%clk
0:01:03.4]} 26... a4 {[%clk 0:01:37.5]} 27. Qb6 {[%clk 0:01:03.2]} 27... Bd7
{[%clk 0:01:28.2]} 28. Qc7 {[%clk 0:01:02.4]} 28... Rd8 {[%clk 0:01:20.8]} 29.
Rxf6 {[%clk 0:01:01.4]} 29... Rxf6 {[%clk 0:01:19.6]} 30. Rxf6 {[%clk
0:01:00.8]} 30... Kxf6 {[%clk 0:01:19.6]} 31. Qxd8+ {[%clk 0:01:00.9]} 1-0

[Event "*** Titled Tuesday Blitz"]
[Site "Chess.com"]
[Date "2020.04.14"]
[Round "8"]
[White "1lec"]
[Black "jwillz14"]
[Result "0-1"]
[WhiteElo "2157"]
[BlackElo "2391"]
[TimeControl "180+1"]
[EndTime "11:27:29 PDT"]
[Termination "jwillz14 won by resignation"]

1. e4 {[%clk 0:03:00.9]} 1... c6 {[%clk 0:03:00.4]} 2. Nc3 {[%clk 0:03:00.4]}
2... d5 {[%clk 0:03:01.3]} 3. Nf3 {[%clk 0:03:00.9]} 3... Bg4 {[%clk 0:03:01]}
4. h3 {[%clk 0:03:00.7]} 4... Bxf3 {[%clk 0:03:00.9]} 5. Qxf3 {[%clk 0:03:01.3]}
5... e6 {[%clk 0:03:01.7]} 6. g3 {[%clk 0:03:00.3]} 6... Nd7 {[%clk 0:03:01.8]}
7. Bg2 {[%clk 0:03:00.6]} 7... Bd6 {[%clk 0:02:59.6]} 8. O-O {[%clk 0:02:59.8]}
8... Ne7 {[%clk 0:03:00.2]} 9. d4 {[%clk 0:02:51.2]} 9... O-O {[%clk 0:02:59.7]}
10. e5 {[%clk 0:02:48.3]} 10... Bc7 {[%clk 0:02:59.7]} 11. Nd1 {[%clk
0:02:21.9]} 11... c5 {[%clk 0:02:56.9]} 12. c3 {[%clk 0:02:21.9]} 12... Nc6
{[%clk 0:02:55.8]} 13. Be3 {[%clk 0:02:12.8]} 13... cxd4 {[%clk 0:02:53]} 14.
cxd4 {[%clk 0:02:12.4]} 14... Bb6 {[%clk 0:02:44.8]} 15. Qg4 {[%clk 0:02:05.7]}
15... f5 {[%clk 0:02:16.8]} 16. exf6 {[%clk 0:02:03.4]} 16... Qxf6 {[%clk
0:02:15.7]} 17. Bxd5 {[%clk 0:01:15.5]} 17... exd5 {[%clk 0:02:13.2]} 18. Qxd7
{[%clk 0:01:15.1]} 18... Rad8 {[%clk 0:02:08.6]} 19. Qxb7 {[%clk 0:00:51.1]}
19... Nxd4 {[%clk 0:02:08.2]} 20. Nc3 {[%clk 0:00:42.2]} 20... Nf3+ {[%clk
0:01:56.4]} 21. Kg2 {[%clk 0:00:42]} 21... d4 {[%clk 0:01:52.1]} 22. Ne4 {[%clk
0:00:37.6]} 22... Qg6 {[%clk 0:01:49.7]} 23. Bd2 {[%clk 0:00:18.9]} 23... Rf7
{[%clk 0:01:49]} 0-1

[Event "*** Titled Tuesday Blitz"]
[Site "Chess.com"]
[Date "2020.04.14"]
[Round "8"]
[White "kungmongmanh"]
[Black "Alonmindlin"]
[Result "1-0"]
[WhiteElo "2588"]
[BlackElo "2693"]
[TimeControl "180+1"]
[EndTime "11:27:30 PDT"]
[Termination "kungmongmanh won by resignation"]

1. d4 {[%clk 0:03:00.9]} 1... Nf6 {[%clk 0:03:00.1]} 2. c4 {[%clk 0:03:01]} 2...
e6 {[%clk 0:03:00.5]} 3. Nc3 {[%clk 0:03:01.2]} 3... Bb4 {[%clk 0:03:01.2]} 4.
Qc2 {[%clk 0:03:01.5]} 4... Nc6 {[%clk 0:03:01.4]} 5. Nf3 {[%clk 0:03:01.5]}
5... d6 {[%clk 0:03:01.9]} 6. Bg5 {[%clk 0:03:00.2]} 6... h6 {[%clk 0:03:01.8]}
7. Bxf6 {[%clk 0:03:00.5]} 7... Qxf6 {[%clk 0:03:01.6]} 8. e3 {[%clk 0:03:01]}
8... e5 {[%clk 0:03:00.1]} 9. d5 {[%clk 0:02:52.4]} 9... Bxc3+ {[%clk
0:03:00.4]} 10. Qxc3 {[%clk 0:02:51.1]} 10... Ne7 {[%clk 0:03:01.3]} 11. Nd2
{[%clk 0:02:49.2]} 11... O-O {[%clk 0:02:58.5]} 12. Bd3 {[%clk 0:02:45.2]} 12...
c6 {[%clk 0:02:54.6]} 13. Ne4 {[%clk 0:02:28.7]} 13... Qg6 {[%clk 0:02:53.3]}
14. Ng3 {[%clk 0:02:21.3]} 14... f5 {[%clk 0:02:46.8]} 15. Qb3 {[%clk
0:01:58.6]} 15... cxd5 {[%clk 0:02:43.1]} 16. cxd5 {[%clk 0:01:58.4]} 16... b6
{[%clk 0:02:34.7]} 17. Rc1 {[%clk 0:01:47.5]} 17... e4 {[%clk 0:02:07.8]} 18.
Be2 {[%clk 0:01:40.4]} 18... Bb7 {[%clk 0:01:58.7]} 19. Rc7 {[%clk 0:01:36.5]}
19... Bxd5 {[%clk 0:01:57.8]} 20. Bc4 {[%clk 0:01:36.6]} 20... Bxc4 {[%clk
0:01:57.8]} 21. Qxc4+ {[%clk 0:01:36.1]} 21... d5 {[%clk 0:01:58.3]} 22. Qb4
{[%clk 0:01:32.9]} 22... Nc6 {[%clk 0:01:53]} 23. Qb5 {[%clk 0:01:27.9]} 23...
Rac8 {[%clk 0:01:16.1]} 24. Qxd5+ {[%clk 0:01:25.5]} 24... Kh7 {[%clk
0:01:16.5]} 25. Rxc8 {[%clk 0:01:21.8]} 25... Rxc8 {[%clk 0:01:12.5]} 26. Qxf5
{[%clk 0:01:18.4]} 26... Nb4 {[%clk 0:01:10.4]} 27. Qxc8 {[%clk 0:01:11.2]}
27... Nd3+ {[%clk 0:01:08.8]} 28. Ke2 {[%clk 0:01:10.8]} 28... Qg4+ {[%clk
0:01:08.9]} 29. Qxg4 {[%clk 0:01:09.6]} 1-0

[Event "*** Titled Tuesday Blitz"]
[Site "Chess.com"]
[Date "2020.04.14"]
[Round "8"]
[White "praveenb2002"]
[Black "Micki-taryan"]
[Result "0-1"]
[WhiteElo "2687"]
[BlackElo "3092"]
[TimeControl "180+1"]
[EndTime "11:27:31 PDT"]
[Termination "Micki-taryan won by resignation"]

1. d4 {[%clk 0:03:00.9]} 1... Nf6 {[%clk 0:03:00]} 2. c4 {[%clk 0:03:00.5]} 2...
e6 {[%clk 0:03:00.2]} 3. Nf3 {[%clk 0:02:59.9]} 3... b6 {[%clk 0:02:59.9]} 4. g3
{[%clk 0:02:58.7]} 4... Ba6 {[%clk 0:03:00.3]} 5. b3 {[%clk 0:02:58]} 5... Bb4+
{[%clk 0:02:58.9]} 6. Bd2 {[%clk 0:02:58.2]} 6... Be7 {[%clk 0:02:59.5]} 7. Bg2
{[%clk 0:02:58.3]} 7... c6 {[%clk 0:03:00.4]} 8. O-O {[%clk 0:02:58.2]} 8... d5
{[%clk 0:03:01.3]} 9. Ne5 {[%clk 0:02:52.8]} 9... Nfd7 {[%clk 0:03:00.7]} 10.
Qc2 {[%clk 0:02:45.3]} 10... Nxe5 {[%clk 0:02:57.9]} 11. dxe5 {[%clk 0:02:45.6]}
11... Nd7 {[%clk 0:02:58.6]} 12. f4 {[%clk 0:02:40.1]} 12... O-O {[%clk
0:02:56.9]} 13. Nc3 {[%clk 0:02:34]} 13... b5 {[%clk 0:02:45]} 14. cxb5 {[%clk
0:02:19.6]} 14... cxb5 {[%clk 0:02:45.9]} 15. a3 {[%clk 0:02:18.3]} 15... Rc8
{[%clk 0:02:38.3]} 16. Qb2 {[%clk 0:02:17.3]} 16... f6 {[%clk 0:02:29.2]} 17.
Bh3 {[%clk 0:02:08.2]} 17... Qb6+ {[%clk 0:02:24.6]} 18. e3 {[%clk 0:02:01.7]}
18... fxe5 {[%clk 0:02:25.5]} 19. Nxd5 {[%clk 0:02:01.5]} 19... exd5 {[%clk
0:02:24.2]} 20. Bxd7 {[%clk 0:02:01.5]} 20... Rcd8 {[%clk 0:02:23.7]} 21. Bh3
{[%clk 0:01:59]} 21... exf4 {[%clk 0:02:23.9]} 22. gxf4 {[%clk 0:01:56.1]} 22...
Bf6 {[%clk 0:02:23.6]} 23. Qc2 {[%clk 0:01:53.1]} 23... Bxa1 {[%clk 0:02:22]}
24. Rxa1 {[%clk 0:01:54]} 24... d4 {[%clk 0:02:22.5]} 25. Re1 {[%clk 0:01:42.3]}
25... Bb7 {[%clk 0:02:10.2]} 26. exd4 {[%clk 0:01:29.3]} 26... Qxd4+ {[%clk
0:02:02.2]} 27. Be3 {[%clk 0:01:29.2]} 27... Qd5 {[%clk 0:02:02]} 28. Bg2 {[%clk
0:01:28.8]} 28... Qxg2+ {[%clk 0:02:00.3]} 29. Qxg2 {[%clk 0:01:29]} 29... Bxg2
{[%clk 0:02:01.2]} 30. Kxg2 {[%clk 0:01:29.5]} 30... Rfe8 {[%clk 0:02:02.1]} 31.
Kf2 {[%clk 0:01:24.5]} 31... Rd3 {[%clk 0:02:02.5]} 32. Bxa7 {[%clk 0:01:24.1]}
32... Rxe1 {[%clk 0:02:03.4]} 33. Kxe1 {[%clk 0:01:24.3]} 33... Rxb3 {[%clk
0:02:04]} 34. Bc5 {[%clk 0:01:24.4]} 34... Rh3 {[%clk 0:02:03.8]} 35. Kf2 {[%clk
0:01:22.2]} 35... Rxh2+ {[%clk 0:02:03.7]} 36. Kg3 {[%clk 0:01:22.7]} 36... Rc2
{[%clk 0:02:04.2]} 37. Bb4 {[%clk 0:01:22.4]} 37... Kf7 {[%clk 0:02:04.9]} 38.
Kg4 {[%clk 0:01:21.7]} 38... g6 {[%clk 0:02:03.4]} 39. Bd6 {[%clk 0:01:21.1]}
39... h5+ {[%clk 0:02:01.5]} 40. Kg3 {[%clk 0:01:19.1]} 40... Rd2 {[%clk
0:02:00.8]} 41. Bb4 {[%clk 0:01:18.8]} 41... Rd3+ {[%clk 0:02:01.7]} 42. Kh4
{[%clk 0:01:18.4]} 42... Kf6 {[%clk 0:02:01.8]} 43. Bc5 {[%clk 0:01:14.5]} 43...
Kf5 {[%clk 0:02:00.7]} 44. Bf8 {[%clk 0:01:10.9]} 44... Kxf4 {[%clk 0:01:56.7]}
45. Bh6+ {[%clk 0:01:11.1]} 45... Kf5 {[%clk 0:01:56.5]} 46. Bc1 {[%clk
0:01:10.9]} 46... Rc3 {[%clk 0:01:52.8]} 47. Bd2 {[%clk 0:01:09.3]} 47... Rxa3
{[%clk 0:01:52.3]} 48. Bf4 {[%clk 0:01:09.7]} 48... g5+ {[%clk 0:01:50.6]} 49.
Bxg5 {[%clk 0:01:09.4]} 49... Rh3+ {[%clk 0:01:50.9]} 0-1

[Event "*** Titled Tuesday Blitz"]
[Site "Chess.com"]
[Date "2020.04.14"]
[Round "8"]
[White "ridnani2021"]
[Black "ApacheSVD"]
[Result "1-0"]
[WhiteElo "1894"]
[BlackElo "2353"]
[TimeControl "180+1"]
[EndTime "11:27:46 PDT"]
[Termination "ridnani2021 won by resignation"]

1. e4 {[%clk 0:03:00]} 1... c5 {[%clk 0:03:00]} 2. Nc3 {[%clk 0:02:58.7]} 2...
a6 {[%clk 0:02:56.1]} 3. g3 {[%clk 0:02:57.4]} 3... b5 {[%clk 0:02:56.4]} 4. Bg2
{[%clk 0:02:54.6]} 4... Bb7 {[%clk 0:02:56.9]} 5. d4 {[%clk 0:02:47.9]} 5...
cxd4 {[%clk 0:02:55.8]} 6. Qxd4 {[%clk 0:02:47.1]} 6... e6 {[%clk 0:02:56.2]} 7.
Nf3 {[%clk 0:02:46.6]} 7... Nc6 {[%clk 0:02:53.9]} 8. Qd1 {[%clk 0:02:46.2]}
8... Rc8 {[%clk 0:02:49.7]} 9. Be3 {[%clk 0:02:45.3]} 9... Nf6 {[%clk
0:02:39.7]} 10. O-O {[%clk 0:02:44.8]} 10... Bb4 {[%clk 0:02:39.1]} 11. e5
{[%clk 0:02:41.7]} 11... Ng4 {[%clk 0:02:34.9]} 12. Bd4 {[%clk 0:02:37.9]} 12...
Nxd4 {[%clk 0:02:26.5]} 13. Qxd4 {[%clk 0:02:37]} 13... Bxc3 {[%clk 0:02:26.2]}
14. Qxg4 {[%clk 0:02:27.7]} 14... Bxb2 {[%clk 0:02:07.9]} 15. Qxg7 {[%clk
0:02:26.8]} 15... Rf8 {[%clk 0:02:05]} 16. Rad1 {[%clk 0:02:24.6]} 16... Rxc2
{[%clk 0:01:57.4]} 17. Ng5 {[%clk 0:02:22.7]} 17... Bxg2 {[%clk 0:01:56.4]} 18.
Nxh7 {[%clk 0:02:18]} 18... Ba3 {[%clk 0:01:51.9]} 19. Nf6+ {[%clk 0:02:14]}
19... Ke7 {[%clk 0:01:50.1]} 20. Rxd7+ {[%clk 0:02:07.1]} 20... Qxd7 {[%clk
0:01:49]} 21. Nxd7 {[%clk 0:02:06.3]} 21... Kxd7 {[%clk 0:01:02.7]} 22. Kxg2
{[%clk 0:02:04.4]} 22... Rxa2 {[%clk 0:01:02.9]} 23. Rd1+ {[%clk 0:02:02.7]}
23... Kc6 {[%clk 0:01:03]} 24. Qg4 {[%clk 0:01:59.9]} 24... Bc5 {[%clk
0:01:01.8]} 25. Qe4+ {[%clk 0:01:59.7]} 25... Kb6 {[%clk 0:01:02.3]} 26. Rf1
{[%clk 0:01:49.4]} 26... b4 {[%clk 0:00:53.5]} 27. h4 {[%clk 0:01:48.2]} 27...
Rd8 {[%clk 0:00:46.3]} 28. h5 {[%clk 0:01:46.4]} 28... Rdd2 {[%clk 0:00:44.7]}
29. h6 {[%clk 0:01:46.5]} 29... Rxf2+ {[%clk 0:00:44.4]} 30. Rxf2 {[%clk
0:01:46.8]} 30... Rxf2+ {[%clk 0:00:45.3]} 31. Kh3 {[%clk 0:01:47.3]} 31... Rf5
{[%clk 0:00:45.9]} 32. g4 {[%clk 0:01:45]} 1-0

[Event "*** Titled Tuesday Blitz"]
[Site "Chess.com"]
[Date "2020.04.14"]
[Round "8"]
[White "bracuarta"]
[Black "Qingdom"]
[Result "1-0"]
[WhiteElo "2197"]
[BlackElo "2084"]
[TimeControl "180+1"]
[EndTime "11:27:48 PDT"]
[Termination "bracuarta won by resignation"]

1. d4 {[%clk 0:03:00.9]} 1... Nf6 {[%clk 0:02:59.5]} 2. c4 {[%clk 0:02:38.9]}
2... c5 {[%clk 0:02:59.2]} 3. d5 {[%clk 0:02:20.9]} 3... e6 {[%clk 0:02:58.8]}
4. Nc3 {[%clk 0:01:55.4]} 4... exd5 {[%clk 0:02:58.4]} 5. cxd5 {[%clk
0:01:55.5]} 5... d6 {[%clk 0:02:58.6]} 6. e4 {[%clk 0:01:54.2]} 6... g6 {[%clk
0:02:58.8]} 7. f4 {[%clk 0:01:54.2]} 7... Bg7 {[%clk 0:02:59]} 8. Bb5+ {[%clk
0:01:53.3]} 8... Nfd7 {[%clk 0:02:59.1]} 9. a4 {[%clk 0:01:47.5]} 9... O-O
{[%clk 0:02:58.6]} 10. Nf3 {[%clk 0:01:43.6]} 10... Na6 {[%clk 0:02:57.7]} 11.
O-O {[%clk 0:01:40.6]} 11... Nc7 {[%clk 0:02:57.6]} 12. Bd3 {[%clk 0:01:39]}
12... a6 {[%clk 0:02:57.6]} 13. Bd2 {[%clk 0:01:13.8]} 13... Rb8 {[%clk
0:02:57.1]} 14. Qe2 {[%clk 0:01:13.6]} 14... Re8 {[%clk 0:02:53.6]} 15. Rae1
{[%clk 0:01:12.9]} 15... f5 {[%clk 0:02:41.6]} 16. e5 {[%clk 0:01:07.2]} 16...
dxe5 {[%clk 0:02:41.1]} 17. fxe5 {[%clk 0:00:58.6]} 17... b5 {[%clk 0:02:29.5]}
18. Bg5 {[%clk 0:00:57.1]} 18... Bf6 {[%clk 0:02:15.3]} 19. exf6 {[%clk
0:00:44.6]} 19... Rxe2 {[%clk 0:02:14.8]} 20. f7+ {[%clk 0:00:44.7]} 20... Kxf7
{[%clk 0:02:15.1]} 21. Bxd8 {[%clk 0:00:43.7]} 21... Rxe1 {[%clk 0:02:15.3]} 22.
Rxe1 {[%clk 0:00:42.7]} 22... Rb7 {[%clk 0:02:07.7]} 23. Bxc7 {[%clk 0:00:33.2]}
23... Rxc7 {[%clk 0:02:07.4]} 24. axb5 {[%clk 0:00:33.2]} 24... c4 {[%clk
0:02:07.5]} 25. Bf1 {[%clk 0:00:30.5]} 25... Nc5 {[%clk 0:01:59]} 26. d6 {[%clk
0:00:28.4]} 26... Rd7 {[%clk 0:01:55.9]} 27. Ne5+ {[%clk 0:00:28]} 27... Kf6
{[%clk 0:01:53.8]} 28. Nxd7+ {[%clk 0:00:28.9]} 28... Bxd7 {[%clk 0:01:54]} 29.
bxa6 {[%clk 0:00:27.6]} 29... Nxa6 {[%clk 0:01:54]} 30. Bxc4 {[%clk 0:00:27.2]}
30... Nc5 {[%clk 0:01:53]} 31. b4 {[%clk 0:00:26]} 31... Na4 {[%clk 0:01:51.5]}
32. Nxa4 {[%clk 0:00:25.3]} 32... Bxa4 {[%clk 0:01:52.1]} 33. b5 {[%clk
0:00:25]} 33... f4 {[%clk 0:01:51]} 34. d7 {[%clk 0:00:24.6]} 1-0

[Event "*** Titled Tuesday Blitz"]
[Site "Chess.com"]
[Date "2020.04.14"]
[Round "8"]
[White "Pomegranate988"]
[Black "GuerrieroFromLevant"]
[Result "1-0"]
[WhiteElo "2505"]
[BlackElo "2359"]
[TimeControl "180+1"]
[EndTime "11:27:56 PDT"]
[Termination "Pomegranate988 won by resignation"]

1. d4 {[%clk 0:03:00.9]} 1... d5 {[%clk 0:02:59.8]} 2. c4 {[%clk 0:03:00.5]}
2... e6 {[%clk 0:02:58.8]} 3. Nf3 {[%clk 0:03:00.8]} 3... c5 {[%clk 0:02:58.1]}
4. cxd5 {[%clk 0:02:59.8]} 4... exd5 {[%clk 0:02:59]} 5. Nc3 {[%clk 0:03:00]}
5... Nf6 {[%clk 0:02:59]} 6. g3 {[%clk 0:02:57]} 6... Nc6 {[%clk 0:02:58.7]} 7.
Bg2 {[%clk 0:02:57.2]} 7... cxd4 {[%clk 0:02:59.6]} 8. Nxd4 {[%clk 0:02:56.3]}
8... Bc5 {[%clk 0:03:00.3]} 9. Nb3 {[%clk 0:02:53.8]} 9... Bb6 {[%clk
0:03:00.1]} 10. O-O {[%clk 0:02:53.2]} 10... d4 {[%clk 0:02:59.5]} 11. Na4
{[%clk 0:02:51.3]} 11... O-O {[%clk 0:02:59.5]} 12. Nxb6 {[%clk 0:02:49.5]}
12... axb6 {[%clk 0:02:59.4]} 13. Bxc6 {[%clk 0:02:34.5]} 13... bxc6 {[%clk
0:03:00.3]} 14. Qxd4 {[%clk 0:02:34.4]} 14... Qxd4 {[%clk 0:02:50.4]} 15. Nxd4
{[%clk 0:02:33.3]} 15... c5 {[%clk 0:02:51.3]} 16. Nb5 {[%clk 0:02:28.7]} 16...
Ba6 {[%clk 0:02:31.4]} 17. Nc7 {[%clk 0:02:10.5]} 17... Bxe2 {[%clk 0:02:22.2]}
18. Nxa8 {[%clk 0:02:09.8]} 18... Bxf1 {[%clk 0:02:22.6]} 19. Nxb6 {[%clk
0:02:08.5]} 19... Bd3 {[%clk 0:02:00]} 20. a4 {[%clk 0:02:06.2]} 20... Re8
{[%clk 0:01:53.9]} 21. Be3 {[%clk 0:02:05.2]} 21... Ng4 {[%clk 0:01:43]} 22. a5
{[%clk 0:01:47.4]} 22... Ne5 {[%clk 0:01:39.6]} 23. a6 {[%clk 0:01:42.4]} 23...
Nf3+ {[%clk 0:01:39.7]} 24. Kg2 {[%clk 0:01:42.3]} 24... Be4 {[%clk 0:01:40.1]}
25. Kh3 {[%clk 0:01:38.7]} 25... Re5 {[%clk 0:01:13.3]} 26. g4 {[%clk
0:01:36.3]} 26... h5 {[%clk 0:00:56.5]} 27. a7 {[%clk 0:01:35.3]} 27... hxg4+
{[%clk 0:00:56.2]} 28. Kg3 {[%clk 0:01:31.8]} 28... f5 {[%clk 0:00:54.4]} 29.
a8=Q+ {[%clk 0:01:27.8]} 29... Bxa8 {[%clk 0:00:54.9]} 30. Rxa8+ {[%clk
0:01:28.3]} 30... Kh7 {[%clk 0:00:55.8]} 31. h3 {[%clk 0:01:23.7]} 1-0